[Event "2025 Chess.com Botwinnik Rapid toernooi"]
[Site "Zoetermeer, Netherlands"]
[Date "????.??.??"]
[Round "1.8"]
[White "Tjin a Lien, Jie-Ren"]
[Black "Van Capelleveen, Jan Willem"]
[Result "1-0"]
[TimeControl "15+5"]
[WhiteFideId "8636155"]
[BlackFideId "9028778"]
[WhiteElo "1846"]
[BlackElo "1582"]

1. d4 {[%clk 00:14:53]} {[%emt 00:00:17]} d5 {[%clk 00:15:08]} {[%emt
00:00:03]} 2. Bf4 {[%clk 00:14:55]} {[%emt 00:00:03]} c6 {[%clk 00:15:06]}
{[%emt 00:00:07]} 3. e3 {[%clk 00:14:54]} {[%emt 00:00:06]} Bf5 {[%clk
00:15:05]} {[%emt 00:00:06]} 4. c4 {[%clk 00:14:55]} {[%emt 00:00:03]} e6
{[%clk 00:15:06]} {[%emt 00:00:04]} 5. Nf3 {[%clk 00:14:47]} {[%emt 00:00:12]}
Nf6 {[%clk 00:15:03]} {[%emt 00:00:08]} 6. Nc3 {[%clk 00:13:36]} {[%emt
00:01:16]} Be7 {[%clk 00:15:05]} {[%emt 00:00:04]} 7. Be2 {[%clk 00:13:31]}
{[%emt 00:00:09]} O-O {[%clk 00:15:04]} {[%emt 00:00:05]} 8. O-O {[%clk
00:13:33]} {[%emt 00:00:04]} Nbd7 {[%clk 00:15:07]} {[%emt 00:00:02]} 9. Rc1
{[%clk 00:11:30]} {[%emt 00:02:08]} Ne4 {[%clk 00:14:37]} {[%emt 00:00:36]} 10.
cxd5 {[%clk 00:10:44]} {[%emt 00:00:51]} cxd5 {[%clk 00:14:11]} {[%emt
00:00:31]} 11. Nxe4 {[%clk 00:10:42]} {[%emt 00:00:07]} Bxe4 {[%clk 00:14:07]}
{[%emt 00:00:08]} 12. Qb3 {[%clk 00:09:52]} {[%emt 00:00:55]} b6 {[%clk
00:13:51]} {[%emt 00:00:22]} 13. Rc7 {[%clk 00:08:56]} {[%emt 00:01:00]} Nf6
{[%clk 00:11:48]} {[%emt 00:02:07]} 14. Rfc1 {[%clk 00:07:47]} {[%emt
00:01:15]} Bd6 {[%clk 00:11:39]} {[%emt 00:00:14]} 15. Bxd6 {[%clk 00:07:36]}
{[%emt 00:00:17]} Qxd6 {[%clk 00:11:40]} {[%emt 00:00:03]} 16. R1c6 {[%clk
00:07:27]} {[%emt 00:00:14]} Qd8 {[%clk 00:11:21]} {[%emt 00:00:24]} 17. Qa4
{[%clk 00:05:55]} {[%emt 00:01:38]} Ne8 {[%clk 00:10:52]} {[%emt 00:00:33]} 18.
Rxa7 {[%clk 00:05:42]} {[%emt 00:00:19]} Rc8 {[%clk 00:10:37]} {[%emt
00:00:20]} 19. Ne5 {[%clk 00:04:59]} {[%emt 00:00:48]} Nf6 {[%clk 00:10:30]}
{[%emt 00:00:13]} 20. f3 {[%clk 00:04:49]} {[%emt 00:00:14]} Bf5 {[%clk
00:10:15]} {[%emt 00:00:20]} 21. Ra6 {[%clk 00:04:35]} {[%emt 00:00:20]} Nd7
{[%clk 00:09:13]} {[%emt 00:01:07]} 22. Nxd7 {[%clk 00:04:06]} {[%emt
00:00:33]} Qxd7 {[%clk 00:09:15]} {[%emt 00:00:03]} 23. Raxb6 {[%clk 00:04:04]}
{[%emt 00:00:07]} Qe7 {[%clk 00:09:07]} {[%emt 00:00:13]} 24. Rxc8 {[%clk
00:03:54]} {[%emt 00:00:16]} Rxc8 {[%clk 00:09:10]} {[%emt 00:00:01]} 25. Qb4
{[%clk 00:03:33]} {[%emt 00:00:27]} Qc7 {[%clk 00:09:00]} {[%emt 00:00:15]} 26.
Qc5 {[%clk 00:02:27]} {[%emt 00:01:11]} g6 {[%clk 00:08:45]} {[%emt 00:00:20]}
27. Qxc7 {[%clk 00:01:50]} {[%emt 00:00:42]} Rxc7 {[%clk 00:08:48]} {[%emt
00:00:02]} 28. g4 {[%clk 00:01:53]} {[%emt 00:00:03]} Bb1 {[%clk 00:08:35]}
{[%emt 00:00:18]} 29. a4 {[%clk 00:01:51]} {[%emt 00:00:08]} Kg7 {[%clk
00:08:30]} {[%emt 00:00:09]} 30. a5 {[%clk 00:01:19]} {[%emt 00:00:37]} Ba2
{[%clk 00:08:32]} {[%emt 00:00:03]} 31. a6 {[%clk 00:01:16]} {[%emt 00:00:08]}
Ra7 {[%clk 00:08:25]} {[%emt 00:00:12]} 32. Rb7 {[%clk 00:01:17]} {[%emt
00:00:05]} Ra8 {[%clk 00:08:10]} {[%emt 00:00:19]} 33. a7 {[%clk 00:01:13]}
{[%emt 00:00:10]} Bc4 {[%clk 00:08:08]} {[%emt 00:00:07]} 34. Bxc4 {[%clk
00:01:15]} {[%emt 00:00:03]} dxc4 {[%clk 00:08:11]} {[%emt 00:00:01]} 35. Kf2
{[%clk 00:01:19]} {[%emt 00:00:02]} Kf8 {[%clk 00:08:09]} {[%emt 00:00:06]} 36.
Ke2 {[%clk 00:01:23]} {[%emt 00:00:01]} Ke8 {[%clk 00:08:17]} {[%emt 00:00:04]}
37. Kd2 {[%clk 00:01:29]} {[%emt 00:00:02]} Kd8 {[%clk 00:08:20]} {[%emt
00:00:03]} 38. Rxf7 {[%clk 00:01:32]} {[%emt 00:00:02]} h6 {[%clk 00:08:15]}
{[%emt 00:00:10]} 39. Rf8+ {[%clk 00:01:36]} {[%emt 00:00:01]} Ke7 {[%clk
00:08:11]} {[%emt 00:00:02]} 1-0

[Event "2025 Chess.com Botwinnik Rapid toernooi"]
[Site "Zoetermeer, Netherlands"]
[Date "????.??.??"]
[Round "2.1"]
[White "Vrolijk, Liam"]
[Black "Albertus, Bram"]
[Result "0-1"]
[TimeControl "15+5"]
[WhiteTitle "GM"]
[WhiteFideId "8428871"]
[BlackFideId "8438727"]
[WhiteElo "2510"]
[BlackElo "2068"]

1. Nf3 {[%emt 00:26:53]} d5 {[%emt 00:00:03]} 2. g3 {[%emt 00:00:02]} Nf6
{[%emt 00:00:05]} 3. Bg2 {[%emt 00:00:02]} Bf5 {[%emt 00:00:13]} 4. O-O {[%emt
00:00:03]} e6 {[%emt 00:00:02]} 5. c4 {[%emt 00:00:02]} c6 {[%emt 00:00:28]} 6.
Qb3 {[%emt 00:00:02]} Qb6 {[%emt 00:01:06]} 7. d3 {[%emt 00:00:03]} Nbd7 {[%emt
00:00:17]} 8. cxd5 {[%emt 00:00:04]} exd5 {[%emt 00:00:18]} 9. Qc2 {[%emt
00:00:02]} Be7 {[%emt 00:00:53]} 10. Nc3 {[%emt 00:00:23]} O-O {[%emt
00:00:05]} 11. e4 {[%emt 00:00:14]} dxe4 {[%emt 00:00:14]} 12. dxe4 {[%emt
00:00:05]} Bg6 {[%emt 00:00:11]} 13. Be3 {[%emt 00:01:45]} Qa5 {[%emt
00:00:31]} 14. h3 {[%emt 00:00:31]} Bc5 {[%emt 00:00:38]} 15. Bd2 {[%emt
00:00:23]} Qc7 {[%emt 00:01:15]} 16. Nh4 {[%emt 00:00:35]} Qxg3 {[%emt
00:01:31]} 17. Nxg6 {[%emt 00:00:26]} Qxg6 {[%emt 00:00:50]} 18. Ne2 {[%emt
00:00:36]} Nh5 {[%emt 00:01:15]} 19. Kh1 {[%emt 00:00:27]} Bb6 {[%emt
00:00:42]} 20. f4 {[%emt 00:02:36]} Rfe8 {[%emt 00:01:54]} 21. Rae1 {[%emt
00:00:35]} Rad8 {[%emt 00:00:34]} 22. Bc3 {[%emt 00:01:51]} Nc5 {[%emt
00:01:44]} 23. f5 {[%emt 00:00:43]} Ng3+ {[%emt 00:00:21]} 24. Nxg3 {[%emt
00:00:12]} Qxg3 {[%emt 00:00:02]} 25. Rf3 {[%emt 00:00:06]} Qh4 {[%emt
00:00:09]} 26. e5 {[%emt 00:00:17]} a5 {[%emt 00:00:58]} 27. Ref1 {[%emt
00:00:55]} Qe4 28. Qc1 {[%emt 00:00:15]} Rd3 {[%emt 00:00:26]} 29. Rg3 {[%emt
00:00:58]} Qh4 {[%emt 00:00:11]} 30. Be1 {[%emt 00:01:04]} Rxg3 {[%emt
00:00:17]} 31. Qd1 {[%emt 00:00:11]} 0-1

[Event "2025 Chess.com Botwinnik Rapid toernooi"]
[Site "Zoetermeer, Netherlands"]
[Date "????.??.??"]
[Round "2.2"]
[White "Kronemeijer, Simon"]
[Black "Lai, Hing Ting"]
[Result "0-1"]
[TimeControl "15+5"]
[BlackTitle "IM"]
[WhiteFideId "7153960"]
[BlackFideId "8324987"]
[WhiteElo "2059"]
[BlackElo "2484"]

1. e4 {[%clk 00:15:06]} {[%emt 00:00:03]} c6 {[%clk 00:15:05]} {[%emt
00:00:05]} 2. d4 {[%clk 00:15:09]} {[%emt 00:00:03]} d5 {[%clk 00:15:09]}
{[%emt 00:00:01]} 3. Nc3 {[%clk 00:15:11]} {[%emt 00:00:03]} a6 {[%clk
00:15:08]} {[%emt 00:00:06]} 4. Be2 {[%clk 00:14:39]} {[%emt 00:00:36]} dxe4
{[%clk 00:14:09]} {[%emt 00:01:04]} 5. Nxe4 {[%clk 00:14:42]} {[%emt 00:00:03]}
Bf5 {[%clk 00:14:11]} {[%emt 00:00:03]} 6. Ng3 {[%clk 00:13:54]} {[%emt
00:00:53]} Bg6 {[%clk 00:14:15]} {[%emt 00:00:02]} 7. Nf3 {[%clk 00:12:36]}
{[%emt 00:01:22]} Nd7 {[%clk 00:14:18]} {[%emt 00:00:02]} 8. O-O {[%clk
00:12:37]} {[%emt 00:00:04]} Ngf6 {[%clk 00:14:21]} {[%emt 00:00:02]} 9. c3
{[%clk 00:12:33]} {[%emt 00:00:10]} e6 {[%clk 00:14:24]} {[%emt 00:00:01]} 10.
Re1 {[%clk 00:12:34]} {[%emt 00:00:04]} Be7 {[%clk 00:14:24]} {[%emt 00:00:05]}
11. Bf4 {[%clk 00:12:19]} {[%emt 00:00:20]} O-O {[%clk 00:14:26]} {[%emt
00:00:04]} 12. Nh4 {[%clk 00:12:10]} {[%emt 00:00:13]} b5 {[%clk 00:14:14]}
{[%emt 00:00:17]} 13. Nxg6 {[%clk 00:11:59]} {[%emt 00:00:16]} hxg6 {[%clk
00:14:18]} {[%emt 00:00:02]} 14. a4 {[%clk 00:11:55]} {[%emt 00:00:09]} Qb6
{[%clk 00:14:21]} {[%emt 00:00:02]} 15. axb5 {[%clk 00:11:25]} {[%emt
00:00:35]} axb5 {[%clk 00:13:36]} {[%emt 00:00:50]} 16. Qc2 {[%clk 00:11:17]}
{[%emt 00:00:13]} Rac8 {[%clk 00:12:43]} {[%emt 00:00:57]} 17. Be3 {[%clk
00:10:18]} {[%emt 00:01:04]} Qb8 {[%clk 00:12:09]} {[%emt 00:00:39]} 18. Qb3
{[%clk 00:10:02]} {[%emt 00:00:22]} Bd6 {[%clk 00:12:03]} {[%emt 00:00:10]} 19.
Bf3 {[%clk 00:09:41]} {[%emt 00:00:26]} Nb6 {[%emt 00:00:42]} 20. Ra6 {[%clk
00:09:22]} Nfd5 {[%clk 00:11:33]} {[%emt 00:00:22]} 21. Rea1 {[%clk 00:09:05]}
{[%emt 00:00:22]} Nxe3 {[%clk 00:11:14]} {[%emt 00:00:24]} 22. fxe3 {[%clk
00:09:07]} {[%emt 00:00:03]} Bxg3 {[%clk 00:11:16]} {[%emt 00:00:03]} 23. hxg3
{[%clk 00:09:08]} {[%emt 00:00:04]} Nc4 {[%clk 00:10:57]} {[%emt 00:00:24]} 24.
Kf2 {[%clk 00:08:36]} {[%emt 00:00:36]} Qd6 {[%clk 00:09:41]} {[%emt 00:01:21]}
25. e4 {[%clk 00:07:51]} {[%emt 00:00:51]} e5 {[%clk 00:09:39]} {[%emt
00:00:07]} 26. Rd1 {[%clk 00:07:34]} {[%emt 00:00:22]} Ra8 {[%clk 00:09:25]}
{[%emt 00:00:19]} 27. Rxa8 {[%clk 00:06:35]} {[%emt 00:01:04]} Rxa8 {[%clk
00:09:28]} {[%emt 00:00:01]} 28. d5 {[%clk 00:05:45]} {[%emt 00:00:55]} Qc5+
{[%clk 00:09:32]} {[%emt 00:00:02]} 29. Ke2 {[%clk 00:04:19]} {[%emt 00:01:31]}
Qe3+ {[%clk 00:09:35]} {[%emt 00:00:02]} 30. Kf1 {[%clk 00:04:22]} {[%emt
00:00:01]} Ra1 {[%clk 00:09:38]} {[%emt 00:00:02]} 0-1

[Event "2025 Chess.com Botwinnik Rapid toernooi"]
[Site "Zoetermeer, Netherlands"]
[Date "????.??.??"]
[Round "2.3"]
[White "Van der Werf, Mark"]
[Black "Leorato, Imanol"]
[Result "1-0"]
[TimeControl "15+5"]
[WhiteTitle "IM"]
[WhiteFideId "7263685"]
[BlackFideId "8930031"]
[WhiteElo "2413"]
[BlackElo "2041"]

1. d4 {[%clk 00:15:06]} {[%emt 00:00:03]} Nf6 {[%clk 00:15:05]} {[%emt
00:00:06]} 2. c4 {[%clk 00:15:09]} {[%emt 00:00:01]} e6 {[%clk 00:15:08]}
{[%emt 00:00:02]} 3. Nc3 {[%clk 00:15:13]} {[%emt 00:00:02]} Bb4 {[%clk
00:15:10]} {[%emt 00:00:02]} 4. e3 {[%clk 00:15:16]} {[%emt 00:00:02]} c5
{[%clk 00:15:06]} {[%emt 00:00:10]} 5. Nge2 {[%clk 00:15:19]} {[%emt 00:00:02]}
cxd4 {[%clk 00:13:54]} {[%emt 00:01:17]} 6. exd4 {[%clk 00:15:22]} {[%emt
00:00:02]} O-O {[%clk 00:13:54]} {[%emt 00:00:05]} 7. a3 {[%clk 00:15:17]}
{[%emt 00:00:09]} Be7 {[%clk 00:13:57]} {[%emt 00:00:03]} 8. d5 {[%clk
00:15:13]} {[%emt 00:00:09]} d6 {[%clk 00:12:55]} {[%emt 00:01:06]} 9. Ng3
{[%clk 00:15:10]} {[%emt 00:00:08]} exd5 {[%clk 00:11:37]} {[%emt 00:01:23]} 10.
cxd5 {[%clk 00:15:12]} {[%emt 00:00:03]} Re8 {[%clk 00:10:45]} {[%emt
00:00:57]} 11. Be2 {[%clk 00:15:15]} {[%emt 00:00:02]} Nbd7 {[%clk 00:10:36]}
{[%emt 00:00:15]} 12. O-O {[%clk 00:15:02]} {[%emt 00:00:18]} Ne5 {[%clk
00:09:40]} {[%emt 00:01:01]} 13. Be3 {[%clk 00:14:46]} {[%emt 00:00:20]} Bf8
{[%clk 00:07:24]} {[%emt 00:02:22]} 14. h3 {[%clk 00:14:23]} {[%emt 00:00:29]}
g6 {[%clk 00:05:30]} {[%emt 00:02:00]} 15. Qd2 {[%clk 00:14:09]} {[%emt
00:00:18]} Bg7 {[%clk 00:04:44]} {[%emt 00:00:51]} 16. Rac1 {[%clk 00:13:53]}
{[%emt 00:00:20]} a6 {[%clk 00:03:04]} {[%emt 00:01:46]} 17. Bd4 {[%clk
00:12:14]} {[%emt 00:01:44]} h5 {[%clk 00:02:37]} {[%emt 00:00:32]} 18. f4
{[%clk 00:10:55]} {[%emt 00:01:24]} Ned7 {[%clk 00:02:28]} {[%emt 00:00:15]} 19.
Bf3 {[%clk 00:10:40]} {[%emt 00:00:19]} b6 {[%clk 00:01:51]} {[%emt 00:00:43]}
20. Nge4 {[%clk 00:09:14]} {[%emt 00:01:31]} Nxe4 {[%clk 00:01:42]} {[%emt
00:00:15]} 21. Nxe4 {[%clk 00:09:14]} {[%emt 00:00:04]} Nc5 {[%clk 00:01:46]}
{[%emt 00:00:02]} 22. Bxg7 {[%clk 00:08:15]} {[%emt 00:01:04]} Kxg7 {[%clk
00:01:49]} {[%emt 00:00:02]} 23. Qd4+ {[%clk 00:08:10]} {[%emt 00:00:10]} f6
{[%clk 00:01:52]} {[%emt 00:00:02]} 24. Rc3 {[%clk 00:04:54]} {[%emt 00:03:20]}
Bf5 {[%clk 00:01:31]} {[%emt 00:00:27]} 25. Nf2 {[%clk 00:04:24]} {[%emt
00:00:34]} Rc8 {[%clk 00:01:12]} {[%emt 00:00:24]} 26. Rfc1 {[%clk 00:03:11]}
{[%emt 00:01:17]} Qe7 {[%clk 00:00:51]} {[%emt 00:00:29]} 27. g4 {[%clk
00:02:25]} {[%emt 00:00:51]} hxg4 {[%clk 00:00:51]} {[%emt 00:00:05]} 28. hxg4
{[%clk 00:02:28]} {[%emt 00:00:02]} Bd7 {[%clk 00:00:55]} 29. g5 {[%clk
00:02:01]} {[%emt 00:00:31]} Kf7 {[%clk 00:00:55]} {[%emt 00:00:05]} 30. Ng4
{[%clk 00:01:49]} {[%emt 00:00:17]} Bxg4 {[%clk 00:00:58]} {[%emt 00:00:02]} 31.
Bxg4 {[%clk 00:01:52]} {[%emt 00:00:01]} f5 {[%clk 00:01:00]} {[%emt 00:00:03]}
32. Bf3 {[%clk 00:01:55]} {[%emt 00:00:02]} Rb8 {[%clk 00:00:35]} {[%emt
00:00:31]} 33. b4 {[%clk 00:01:50]} {[%emt 00:00:09]} Rec8 {[%clk 00:00:23]}
{[%emt 00:00:17]} 34. bxc5 {[%clk 00:01:45]} {[%emt 00:00:11]} bxc5 {[%clk
00:00:27]} 35. Qe3 {[%clk 00:01:37]} {[%emt 00:00:12]} Rb2 {[%clk 00:00:12]}
{[%emt 00:00:20]} 36. Qxe7+ {[%clk 00:01:26]} {[%emt 00:00:17]} Kxe7 {[%clk
00:00:16]} 37. Re1+ {[%clk 00:01:28]} {[%emt 00:00:03]} Kd7 {[%clk 00:00:10]}
{[%emt 00:00:12]} 38. Re2 {[%clk 00:01:19]} {[%emt 00:00:13]} Rb1+ {[%clk
00:00:09]} {[%emt 00:00:06]} 39. Kf2 {[%clk 00:01:13]} {[%emt 00:00:10]} Rh8
{[%clk 00:00:12]} {[%emt 00:00:03]} 40. Rce3 {[%clk 00:01:10]} {[%emt
00:00:07]} Rh4 {[%clk 00:00:06]} {[%emt 00:00:12]} 41. Re7+ {[%clk 00:01:07]}
{[%emt 00:00:08]} Kc8 {[%clk 00:00:10]} 42. Rg7 {[%clk 00:01:06]} {[%emt
00:00:06]} Rb3 {[%clk 00:00:13]} {[%emt 00:00:03]} 43. Re8# {[%clk 00:01:09]}
{[%emt 00:00:02]} 1-0

[Event "2025 Chess.com Botwinnik Rapid toernooi"]
[Site "Zoetermeer, Netherlands"]
[Date "????.??.??"]
[Round "2.4"]
[White "Habig, Bryan"]
[Black "Van Vliet, Jeffrey"]
[Result "0-1"]
[TimeControl "15+5"]
[BlackTitle "FM"]
[WhiteFideId "8490900"]
[BlackFideId "7890839"]
[WhiteElo "2040"]
[BlackElo "2387"]

1. c4 {[%clk 00:15:07]} {[%emt 00:00:02]} d6 {[%clk 00:15:03]} {[%emt
00:00:07]} 2. Nc3 {[%clk 00:15:10]} {[%emt 00:00:03]} g6 {[%clk 00:15:04]}
{[%emt 00:00:03]} 3. e4 {[%clk 00:15:12]} {[%emt 00:00:03]} Bg7 {[%clk
00:15:08]} {[%emt 00:00:02]} 4. d4 {[%clk 00:15:15]} {[%emt 00:00:02]} Nc6
{[%clk 00:15:10]} {[%emt 00:00:03]} 5. Be3 {[%clk 00:15:17]} {[%emt 00:00:02]}
e5 {[%clk 00:15:12]} {[%emt 00:00:03]} 6. Nge2 {[%clk 00:15:13]} {[%emt
00:00:10]} Nf6 {[%clk 00:15:09]} {[%emt 00:00:07]} 7. f3 {[%clk 00:15:16]}
{[%emt 00:00:02]} O-O {[%clk 00:15:08]} {[%emt 00:00:05]} 8. Qd2 {[%clk
00:15:19]} {[%emt 00:00:03]} exd4 {[%clk 00:14:51]} {[%emt 00:00:22]} 9. Nxd4
{[%clk 00:15:21]} {[%emt 00:00:02]} Re8 {[%clk 00:14:46]} {[%emt 00:00:10]} 10.
Be2 {[%clk 00:15:19]} {[%emt 00:00:08]} Bd7 {[%clk 00:14:28]} {[%emt 00:00:23]}
11. O-O {[%clk 00:15:14]} {[%emt 00:00:09]} a6 {[%clk 00:14:22]} {[%emt
00:00:12]} 12. Rad1 {[%clk 00:14:26]} {[%emt 00:00:53]} Ne5 {[%clk 00:13:36]}
{[%emt 00:00:52]} 13. Bg5 {[%clk 00:13:47]} {[%emt 00:00:43]} Qc8 {[%clk
00:12:17]} {[%emt 00:01:24]} 14. Kh1 {[%clk 00:13:40]} {[%emt 00:00:11]} Nc6
{[%clk 00:11:50]} {[%emt 00:00:33]} 15. Nc2 {[%clk 00:13:28]} {[%emt 00:00:17]}
b5 {[%clk 00:10:32]} {[%emt 00:01:23]} 16. cxb5 {[%clk 00:13:17]} {[%emt
00:00:16]} axb5 {[%clk 00:10:36]} {[%emt 00:00:01]} 17. Bxb5 {[%clk 00:13:18]}
{[%emt 00:00:04]} Qb7 {[%clk 00:10:28]} {[%emt 00:00:12]} 18. Bxc6 {[%clk
00:12:59]} {[%emt 00:00:25]} Bxc6 {[%clk 00:10:17]} {[%emt 00:00:15]} 19. Nd4
{[%clk 00:12:12]} {[%emt 00:00:51]} Bd7 {[%clk 00:10:05]} {[%emt 00:00:18]} 20.
Rc1 {[%clk 00:10:54]} {[%emt 00:01:24]} Reb8 {[%clk 00:09:19]} {[%emt
00:00:51]} 21. Nb3 {[%clk 00:10:25]} {[%emt 00:00:34]} Be6 {[%clk 00:09:10]}
{[%emt 00:00:14]} 22. Qc2 {[%clk 00:07:12]} {[%emt 00:03:18]} Ne8 {[%clk
00:06:28]} {[%emt 00:02:47]} 23. h4 {[%clk 00:06:03]} {[%emt 00:01:13]} h6
{[%clk 00:06:05]} {[%emt 00:00:28]} 24. Be3 {[%clk 00:05:04]} {[%emt 00:01:03]}
Bxb3 {[%clk 00:05:54]} {[%emt 00:00:17]} 25. axb3 {[%clk 00:05:04]} {[%emt
00:00:05]} Qxb3 {[%clk 00:05:55]} {[%emt 00:00:04]} 26. Nd5 {[%clk 00:04:41]}
{[%emt 00:00:28]} Bxb2 {[%clk 00:05:07]} {[%emt 00:00:53]} 27. Qxb3 {[%clk
00:04:14]} {[%emt 00:00:32]} Rxb3 {[%clk 00:05:11]} {[%emt 00:00:01]} 28. Rb1
{[%clk 00:03:55]} {[%emt 00:00:25]} Kh7 {[%clk 00:04:53]} {[%emt 00:00:22]} 29.
Rf2 {[%clk 00:03:03]} {[%emt 00:00:57]} Rab8 {[%clk 00:04:36]} {[%emt
00:00:23]} 30. Rc2 {[%clk 00:02:55]} {[%emt 00:00:13]} c5 {[%clk 00:04:24]}
{[%emt 00:00:17]} 31. Rd1 {[%clk 00:02:45]} {[%emt 00:00:15]} Be5 {[%clk
00:03:49]} {[%emt 00:00:40]} 32. Bf4 {[%clk 00:02:33]} {[%emt 00:00:17]} Rb1
{[%clk 00:03:36]} {[%emt 00:00:18]} 33. Rcd2 {[%clk 00:02:32]} {[%emt
00:00:06]} Bd4 {[%clk 00:03:24]} {[%emt 00:00:16]} 34. Kh2 {[%clk 00:02:26]}
{[%emt 00:00:12]} Rxd1 {[%clk 00:03:22]} {[%emt 00:00:08]} 35. Rxd1 {[%clk
00:02:29]} Kg7 {[%clk 00:03:04]} {[%emt 00:00:23]} 36. Be3 {[%clk 00:02:27]}
{[%emt 00:00:07]} Bxe3 {[%clk 00:03:02]} {[%emt 00:00:07]} 37. Nxe3 {[%clk
00:02:30]} {[%emt 00:00:02]} Kf6 {[%clk 00:02:52]} {[%emt 00:00:15]} 38. f4
{[%clk 00:02:27]} {[%emt 00:00:08]} Ke6 {[%clk 00:02:43]} {[%emt 00:00:14]} 39.
Kg3 {[%clk 00:02:04]} {[%emt 00:00:28]} Nf6 {[%clk 00:02:40]} {[%emt 00:00:08]}
40. Kf3 {[%clk 00:02:04]} {[%emt 00:00:05]} Rb3 {[%clk 00:02:43]} {[%emt
00:00:02]} 41. Ra1 {[%clk 00:01:58]} {[%emt 00:00:11]} h5 {[%clk 00:02:46]}
{[%emt 00:00:03]} 42. f5+ {[%clk 00:01:30]} {[%emt 00:00:32]} Ke5 {[%clk
00:02:41]} {[%emt 00:00:10]} 43. fxg6 {[%clk 00:01:10]} {[%emt 00:00:25]} Ng4
{[%clk 00:02:33]} {[%emt 00:00:12]} 44. Re1 {[%clk 00:00:41]} {[%emt 00:00:34]}
fxg6 {[%clk 00:02:36]} {[%emt 00:00:02]} 45. g3 {[%clk 00:00:41]} {[%emt
00:00:05]} Rd3 {[%clk 00:02:24]} {[%emt 00:00:16]} 46. Re2 {[%emt 00:01:23]}
0-1

[Event "2025 Chess.com Botwinnik Rapid toernooi"]
[Site "Zoetermeer, Netherlands"]
[Date "????.??.??"]
[Round "2.5"]
[White "Tjiam, Dharma"]
[Black "Oranje, Richard"]
[Result "1-0"]
[TimeControl "15+5"]
[WhiteTitle "IM"]
[WhiteFideId "6383751"]
[BlackFideId "7353753"]
[WhiteElo "2364"]
[BlackElo "2025"]

1. d4 {[%clk 00:15:05]} {[%emt 00:27:28]} f5 {[%clk 00:15:05]} {[%emt
00:00:02]} 2. Nc3 {[%clk 00:14:53]} {[%emt 00:00:20]} d5 {[%clk 00:15:07]}
{[%emt 00:00:03]} 3. Bf4 {[%clk 00:14:56]} {[%emt 00:00:02]} c6 {[%clk
00:15:11]} {[%emt 00:00:02]} 4. e3 {[%clk 00:15:00]} {[%emt 00:00:02]} Nf6
{[%clk 00:15:14]} {[%emt 00:00:02]} 5. Nf3 {[%clk 00:14:58]} {[%emt 00:00:07]}
e6 {[%clk 00:15:17]} {[%emt 00:00:01]} 6. h3 {[%clk 00:14:56]} {[%emt
00:00:08]} Bb4 {[%clk 00:15:21]} {[%emt 00:00:02]} 7. Bd3 {[%clk 00:14:42]}
{[%emt 00:00:19]} Qa5 {[%clk 00:15:16]} {[%emt 00:00:09]} 8. O-O {[%clk
00:14:43]} {[%emt 00:00:03]} O-O {[%clk 00:15:04]} {[%emt 00:00:17]} 9. Ne2
{[%clk 00:14:40]} {[%emt 00:00:08]} Be7 {[%clk 00:14:36]} {[%emt 00:00:33]} 10.
c4 {[%clk 00:14:32]} {[%emt 00:00:13]} Qd8 {[%clk 00:14:03]} {[%emt 00:00:39]}
11. Rb1 {[%clk 00:13:55]} {[%emt 00:00:42]} Ne4 {[%clk 00:14:01]} {[%emt
00:00:07]} 12. b4 {[%clk 00:12:07]} {[%emt 00:01:54]} Nd7 {[%clk 00:14:01]}
{[%emt 00:00:04]} 13. b5 {[%clk 00:11:41]} {[%emt 00:00:31]} g5 {[%clk
00:12:37]} {[%emt 00:01:29]} 14. Bh2 {[%clk 00:11:43]} {[%emt 00:00:03]} Qe8
{[%clk 00:11:30]} {[%emt 00:01:12]} 15. bxc6 {[%clk 00:09:56]} {[%emt
00:01:52]} bxc6 {[%clk 00:11:32]} {[%emt 00:00:02]} 16. Ne5 {[%clk 00:09:38]}
{[%emt 00:00:23]} Nxe5 {[%clk 00:11:10]} {[%emt 00:00:27]} 17. Bxe5 {[%clk
00:09:40]} {[%emt 00:00:03]} Bd6 {[%clk 00:09:02]} {[%emt 00:02:13]} 18. Bxd6
{[%clk 00:06:50]} {[%emt 00:02:55]} Nxd6 {[%clk 00:09:05]} {[%emt 00:00:03]} 19.
c5 {[%clk 00:06:53]} {[%emt 00:00:02]} Nf7 {[%clk 00:09:04]} {[%emt 00:00:05]}
20. f4 {[%clk 00:06:43]} {[%emt 00:00:15]} g4 {[%clk 00:08:34]} {[%emt
00:00:36]} 21. hxg4 {[%clk 00:06:07]} {[%emt 00:00:41]} Nh6 {[%clk 00:08:37]}
{[%emt 00:00:02]} 22. g5 {[%clk 00:05:05]} {[%emt 00:01:06]} Ng4 {[%clk
00:08:39]} {[%emt 00:00:03]} 23. Rf3 {[%clk 00:05:09]} {[%emt 00:00:02]} h6
{[%clk 00:08:24]} {[%emt 00:00:20]} 24. gxh6 {[%clk 00:04:56]} {[%emt
00:00:17]} Rf6 {[%clk 00:08:28]} {[%emt 00:00:02]} 25. Rh3 {[%clk 00:04:53]}
{[%emt 00:00:09]} Rxh6 {[%clk 00:07:39]} {[%emt 00:00:54]} 26. Rxh6 {[%clk
00:04:55]} {[%emt 00:00:02]} Nxh6 {[%clk 00:07:43]} {[%emt 00:00:01]} 27. Ng3
{[%clk 00:04:57]} {[%emt 00:00:04]} Ng4 {[%clk 00:07:46]} {[%emt 00:00:02]} 28.
Nf1 {[%clk 00:05:01]} a5 {[%clk 00:06:58]} {[%emt 00:00:53]} 29. Be2 {[%clk
00:05:02]} {[%emt 00:00:04]} Nf6 {[%clk 00:07:02]} {[%emt 00:00:01]} 30. Qe1
{[%clk 00:04:51]} {[%emt 00:00:15]} Qg6 {[%clk 00:06:51]} {[%emt 00:00:16]} 31.
Qg3 {[%clk 00:04:32]} {[%emt 00:00:25]} Qxg3 {[%clk 00:06:44]} {[%emt
00:00:12]} 32. Nxg3 {[%clk 00:04:35]} {[%emt 00:00:01]} Kf7 {[%clk 00:06:10]}
{[%emt 00:00:39]} 33. Nf1 {[%clk 00:03:42]} {[%emt 00:00:58]} Ke7 {[%clk
00:06:12]} {[%emt 00:00:04]} 34. Nd2 {[%clk 00:03:38]} {[%emt 00:00:09]} Kd7
{[%clk 00:06:06]} {[%emt 00:00:10]} 35. Nf3 {[%clk 00:03:31]} {[%emt 00:00:12]}
Kc7 {[%clk 00:06:08]} {[%emt 00:00:04]} 36. Ne5 {[%clk 00:03:29]} {[%emt
00:00:07]} Ba6 {[%clk 00:06:04]} {[%emt 00:00:08]} 37. Bd1 {[%clk 00:02:54]}
{[%emt 00:00:39]} Ne4 {[%clk 00:04:50]} {[%emt 00:01:19]} 38. Rb6 {[%clk
00:02:09]} {[%emt 00:00:50]} Nc3 {[%clk 00:01:37]} {[%emt 00:03:18]} 39. Rxc6+
{[%clk 00:01:57]} {[%emt 00:00:17]} Kb7 {[%clk 00:01:41]} 40. Rb6+ {[%clk
00:01:34]} {[%emt 00:00:29]} Kc7 {[%clk 00:01:40]} {[%emt 00:00:06]} 41. Bc2
{[%clk 00:01:36]} {[%emt 00:00:03]} Nxa2 {[%clk 00:01:39]} {[%emt 00:00:06]} 42.
Rxe6 {[%clk 00:01:38]} {[%emt 00:00:02]} Nc3 {[%clk 00:01:23]} {[%emt
00:00:22]} 43. Re7+ {[%clk 00:01:25]} {[%emt 00:00:18]} 1-0